[Event "World Team-ch Women 2019"]
[Site "Astana"]
[Date "2019.03.14"]
[Round "9.3"]
[White "Ushenina, Anna"]
[Black "Lei, Tingjie"]
[Result "0-1"]
[ECO "E06"]
[WhiteElo "2443"]
[BlackElo "2477"]
[Annotator "RC"]
[PlyCount "100"]
[EventDate "2019.02.05"]
[EventType "team-tourn"]
[EventCountry "KAZ"]
[SourceTitle "playchess.com"]
[Source "ChessBase"]
[SourceQuality "1"]
[WhiteTeam "Ukraine"]
[BlackTeam "China"]
[WhiteTeamCountry "UKR"]
[BlackTeamCountry "CHN"]
[TimeControl "40/5400+30:1800+30"]

1. d4 {[%emt 0:00:00]} Nf6 {[%emt 0:00:00]} 2. c4 {[%emt 0:00:10]} e6 {[%emt 0:00:00]} 3. Nf3 {[%emt 0:02:00]} d5 {[%emt 0:00:53]} 4. g3 {[%emt 0:00:07]} Be7 {[%emt 0:00:06]} 5. Bg2 {[%emt 0:00:08]} O-O {[%emt 0:00:08]} 6. O-O {[%emt 0:00:03]} dxc4 {[%emt 0:00:07]} 7. Qc2 {[%emt 0:01:19]} a6 {[%emt 0:00:11]} 8. a4 {[%emt 0:00:07]} Bd7 {[%emt 0:00:07]} 9. Rd1 {[%emt 0:02:48]} Bc6 {[%emt 0:00:40]} 10. Bg5 {[%emt 0:00:23]} b5 {[%emt 0:15:21]} 11. Bxf6 {[%emt 0:00:39]} Bxf6 {[%emt 0:00:05]} 12. Nc3 {[%emt 0:00:07]} Qe8 {[%emt 0:02:55]} 13. d5 {[%emt 0:03:47]} Bxd5 {[%emt 0:19:55]} 14. axb5 {[%emt 0:26:10]} Nd7 {[%emt 0:00:34]} 15. bxa6 {[%emt 0:18:52]} Nb6 {[%emt 0:08:00]} 16. e4 {[%emt 0:09:01]} Bc6 {[%emt 0:00:05]} 17. e5 {[%emt 0:01:20]} Be7 {[%emt 0:00:11]} 18. Nd4 {[%emt 0:00:05]} Bd5 {[%emt 0:04:30]} 19. Be4 {[%emt 0:04:28]} g6 {[%emt 0:03:10]} 20. h4 {[%emt 0:05:39]} c6 {[%emt 0:05:42]} 21. h5 {[%emt 0:03:51]} Bc5 {[%emt 0:05:32]} 22. Qe2 {[%emt 0:01:28]} Bxd4 {[%emt 0:08:57]} 23. Rxd4 {[%emt 0:00:15]} Qb8 {[%emt 0:01:02]} 24. Bc2 {[%emt 0:11:05]} Nd7 {[%emt 0:00:37]} 25. Re1 {[%emt 0:00:06]} Qxb2 {[%emt 0:04:27]} 26. Qd2 {[%emt 0:00:28]} Rxa6 {[%emt 0:06:42]} 27. Nd1 {[%emt 0:04:21]} Qb8 {[%emt 0:03:06]} 28. Qg5 {[%emt 0:01:55]} Kg7 {[%emt 0:06:26]} 29. hxg6 {[%emt 0:02:25]} hxg6 {[%emt 0:00:08]} 30. Rh4 {[%emt 0:00:10]} Rh8 {[%emt 0:00:09]} 31. Bxg6 {[%emt 0:00:06]} Qd8 {[%emt 0:02:32]} 32. Qxd8 {[%emt 0:00:04]} Rxd8 {[%emt 0:00:04]} 33. Bh5 {[%emt 0:00:02]} Ra1 {[%emt 0:01:42]} 34. Kf1 {[%emt 0:00:44]} Rh8 {[%emt 0:01:34]} 35. f4 {[%emt 0:01:03]} f6 {[%emt 0:01:03]} 36. Ne3 {[%emt 0:02:04]} Rxe1+ {[%emt 0:00:12]} 37. Kxe1 {[%emt 0:00:02]} fxe5 {[%emt 0:00:43]} 38. f5 {[%emt 0:00:14]} exf5 {[%emt 0:00:45]} 39. Nxf5+ {[%emt 0:00:06]} Kf6 {[%emt 0:00:08]} 40. Ne3 {[%emt 0:00:00]} Kg5 {[%emt 0:00:00]} 41. Rg4+ {[%emt 0:01:47]} Kf6 {[%emt 0:01:10]} 42. Rg6+ {[%emt 0:01:59]} Ke7 {[%emt 0:01:46]} 43. Rg5 {[%emt 0:05:12]} Kd6 {[%emt 0:03:46]} 44. Bg4 {[%emt 0:03:02]} Nb6 {[%emt 0:03:47]} 45. Bh5 {[%emt 0:02:52]} c3 {[%emt 0:04:26]} 46. g4 {[%emt 0:00:09]} Nc4 {[%emt 0:02:24]} 47. Ke2 {[%emt 0:01:47]} Nxe3 {[%emt 0:00:37]} 48. Kxe3 {[%emt 0:00:02]} c2 {[%emt 0:00:07]} 49. Kd2 {[%emt 0:00:05]} Be4 {[%emt 0:00:05]} 50. Rg7 {[%emt 0:01:01]} Ke6 {[%emt 0:01:30]} 0-1

[Event "World Team-ch Women 2019"]
[Site "Astana"]
[Date "2019.03.14"]
[Round "9.9"]
[White "Hoang, Thanh Trang"]
[Black "Karavade, Eesha"]
[Result "1/2-1/2"]
[ECO "A46"]
[WhiteElo "2454"]
[BlackElo "2357"]
[Annotator "RC"]
[PlyCount "62"]
[EventDate "2019.02.05"]
[EventType "team-tourn"]
[EventCountry "KAZ"]
[SourceTitle "playchess.com"]
[Source "ChessBase"]
[SourceQuality "1"]
[WhiteTeam "Hungary"]
[BlackTeam "India"]
[WhiteTeamCountry "HUN"]
[BlackTeamCountry "IND"]
[TimeControl "40/5400+30:1800+30"]

1. d4 {[%emt 0:00:00]} Nf6 {[%emt 0:00:00]} 2. Nf3 {[%emt 0:00:00]} e6 {[%emt 0:00:22]} 3. e3 {[%emt 0:00:30]} b6 {[%emt 0:00:45]} 4. Bd3 {[%emt 0:00:22]} Bb7 {[%emt 0:00:27]} 5. O-O {[%emt 0:00:28]} d5 {[%emt 0:00:45]} 6. b3 {[%emt 0:02:51]} Bd6 {[%emt 0:01:38]} 7. Bb2 {[%emt 0:00:25]} Nbd7 {[%emt 0:00:37]} 8. Nbd2 {[%emt 0:01:40]} O-O {[%emt 0:01:00]} 9. c4 {[%emt 0:01:47]} Ne4 {[%emt 0:04:26]} 10. Rc1 {[%emt 0:03:25]} Qe7 {[%emt 0:07:51]} 11. Qc2 {[%emt 0:10:20]} f5 {[%emt 0:08:55]} 12. Ne5 {[%emt 0:09:48]} Nxd2 {[%emt 0:05:54]} 13. Qxd2 {[%emt 0:00:21]} Nxe5 {[%emt 0:00:13]} 14. dxe5 {[%emt 0:00:20]} Bc5 {[%emt 0:00:12]} 15. cxd5 {[%emt 0:05:07]} Bxd5 {[%emt 0:00:07]} 16. Bc4 {[%emt 0:05:02]} Rad8 {[%emt 0:03:50]} 17. Qe2 {[%emt 0:01:31]} f4 {[%emt 0:06:10]} 18. Bxd5 {[%emt 0:09:13]} Rxd5 {[%emt 0:01:27]} 19. exf4 {[%emt 0:02:26]} Rxf4 {[%emt 0:00:13]} 20. g3 {[%emt 0:04:00]} Rf8 {[%emt 0:03:30]} 21. Kg2 {[%emt 0:01:04]} Qd7 {[%emt 0:01:22]} 22. Bc3 {[%emt 0:01:42]} Bd4 {[%emt 0:10:37]} 23. Bxd4 {[%emt 0:06:39]} Rxd4 {[%emt 0:00:46]} 24. Rfd1 {[%emt 0:03:57]} c5 {[%emt 0:02:39]} 25. Rxd4 {[%emt 0:00:20]} cxd4 {[%emt 0:04:23]} 26. Rd1 {[%emt 0:04:26]} Qd5+ {[%emt 0:02:36]} 27. f3 {[%emt 0:02:48]} Rf5 {[%emt 0:01:09]} 28. Qf2 {[%emt 0:07:25]} d3 {[%emt 0:09:48]} 29. Qf1 {[%emt 0:00:13]} Qxe5 {[%emt 0:02:27]} 30. Qxd3 {[%emt 0:01:24]} Rf8 {[%emt 0:00:08]} 31. Rd2 {[%emt 0:00:35]} Qf5 {[%emt 0:01:41]} 1/2-1/2

[Event "World Team-ch Women 2019"]
[Site "Astana"]
[Date "2019.03.14"]
[Round "9.10"]
[White "Soumya, Swaminathan"]
[Black "Gara, Anita"]
[Result "0-1"]
[ECO "B22"]
[WhiteElo "2401"]
[BlackElo "2384"]
[Annotator "ChessBase"]
[PlyCount "76"]
[EventDate "2019.02.05"]
[EventType "team-tourn"]
[EventCountry "KAZ"]
[SourceTitle "playchess.com"]
[Source "ChessBase"]
[SourceQuality "1"]
[WhiteTeam "India"]
[BlackTeam "Hungary"]
[WhiteTeamCountry "IND"]
[BlackTeamCountry "HUN"]
[TimeControl "40/5400+30:1800+30"]

1. e4 {[%emt 0:00:00]} c5 {[%emt 0:00:00]} 2. c3 {[%emt 0:00:00]} g6 {[%emt 0:00:09]} 3. d4 {[%emt 0:00:00]} cxd4 {[%emt 0:00:14]} 4. cxd4 {[%emt 0:00:00]} d5 {[%emt 0:00:09]} 5. e5 {[%emt 0:00:00]} a6 {[%emt 0:01:48]} 6. Nc3 {[%emt 0:01:15]} Nc6 {[%emt 0:00:32]} 7. Be3 {[%emt 0:03:15]} Nh6 {[%emt 0:02:12]} 8. Qb3 {[%emt 0:02:44]} e6 {[%emt 0:05:49]} 9. Nf3 {[%emt 0:05:55]} Nf5 {[%emt 0:01:39]} 10. Rd1 {[%emt 0:00:37]} Nxe3 {[%emt 0:06:11]} 11. fxe3 {[%emt 0:03:02]} b5 {[%emt 0:03:41]} 12. Bd3 {[%emt 0:05:40]} Bb7 {[%emt 0:11:53]} 13. O-O {[%emt 0:01:31]} Bh6 {[%emt 0:03:45]} 14. Rde1 {[%emt 0:03:55]} O-O {[%emt 0:00:15]} 15. a3 {[%emt 0:00:39]} Rc8 {[%emt 0:03:36]} 16. Qd1 {[%emt 0:02:15]} Qb6 {[%emt 0:07:22]} 17. Qe2 {[%emt 0:04:48]} Na5 {[%emt 0:16:23]} 18. Qf2 {[%emt 0:02:43]} Qd8 {[%emt 0:05:13]} 19. Ne2 {[%emt 0:10:58]} Nc4 {[%emt 0:02:23]} 20. Nf4 {[%emt 0:00:11]} Qe7 {[%emt 0:01:44]} 21. g4 {[%emt 0:13:29]} f6 {[%emt 0:06:58]} 22. exf6 {[%emt 0:01:53]} Qxf6 {[%emt 0:00:10]} 23. Nh3 {[%emt 0:00:34]} Qe7 {[%emt 0:03:12]} 24. g5 {[%emt 0:03:26]} Bg7 {[%emt 0:00:02]} 25. Qg2 {[%emt 0:14:39]} e5 {[%emt 0:01:15]} 26. Bb1 {[%emt 0:00:27]} e4 {[%emt 0:01:05]} 27. Nd2 {[%emt 0:00:13]} Nxe3 {[%emt 0:02:28]} 28. Rxe3 {[%emt 0:01:32]} Bxd4 {[%emt 0:00:06]} 29. Qe2 {[%emt 0:00:31]} Qc5 {[%emt 0:01:08]} 30. Re1 {[%emt 0:01:28]} Bxe3+ {[%emt 0:01:19]} 31. Qxe3 {[%emt 0:00:07]} Qxe3+ {[%emt 0:00:17]} 32. Rxe3 {[%emt 0:00:02]} Rc1+ {[%emt 0:00:21]} 33. Kg2 {[%emt 0:00:07]} d4 {[%emt 0:00:22]} 34. Ba2+ {[%emt 0:00:10]} Kh8 {[%emt 0:01:15]} 35. Rxe4 {[%emt 0:04:04]} Rc2 {[%emt 0:00:45]} 36. Kg3 {[%emt 0:01:31]} Rxd2 {[%emt 0:00:46]} 37. Re7 {[%emt 0:00:09]} Rg2+ {[%emt 0:02:09]} 38. Kh4 {[%emt 0:00:15]} Bc8 {[%emt 0:00:21]} 0-1

[Event "World Team-ch Women 2019"]
[Site "Astana"]
[Date "2019.03.14"]
[Round "9.11"]
[White "Gara, Ticia"]
[Black "Padmini, Rout"]
[Result "1/2-1/2"]
[ECO "D35"]
[WhiteElo "2324"]
[BlackElo "2332"]
[Annotator "NA"]
[PlyCount "75"]
[EventDate "2019.02.05"]
[EventType "team-tourn"]
[EventCountry "KAZ"]
[SourceTitle "playchess.com"]
[Source "ChessBase"]
[SourceQuality "1"]
[WhiteTeam "Hungary"]
[BlackTeam "India"]
[WhiteTeamCountry "HUN"]
[BlackTeamCountry "IND"]
[TimeControl "40/5400+30:1800+30"]

{[%evp 25,66,14,17,30,27,28,18,32767,32767,32767,32767,32767,32767,14,53,36,40,48,89,91,110,99,106,99,110,88,101,31,60,29,50,7,0,8,32767,15,8,10,4,13,10,4,16]} 1. c4 {[%emt 0:00:00]} e6 {[%emt 0:01:26]} 2. Nc3 {[%emt 0:00:00]} d5 {[%emt 0:01:37]} 3. d4 {[%emt 0:00:38]} Nf6 {[%emt 0:00:14]} 4. cxd5 {[%emt 0:01:17]} exd5 {[%emt 0:00:17]} 5. Bg5 {[%emt 0:00:16]} c6 {[%emt 0:00:19]} 6. e3 {[%emt 0:00:24]} h6 {[%emt 0:00:10]} 7. Bh4 {[%emt 0:00:12]} Bf5 {[%emt 0:00:36]} 8. Bd3 {[%emt 0:04:17] D35: Queen's Gambit Declined: Exchange Variation} (8. Qf3 Bh7 9. Bxf6 Qxf6 10. Qxf6 gxf6 11. Kd2 Nd7 12. Nf3 Nb6 13. Bd3 Nc4+ 14. Bxc4 dxc4 15. b3 cxb3 16. axb3 {1-0 (64) So,W (2780)-Duda,J (2737) chess.com INT 2018}) 8... Bxd3 {[%emt 0:00:14]} 9. Qxd3 {[%emt 0:00:03]} Nbd7 {[%emt 0:00:17]} 10. Nge2 {[%emt 0:01:57]} Be7 {[%emt 0:01:33]} 11. O-O {[%emt 0:01:38]} O-O {[%emt 0:00:10]} 12. Rab1 $146 {[%emt 0:02:12]} ({Predecessor:} 12. a3 a5 13. Qc2 Re8 14. Nc1 Ne4 15. Nxe4 dxe4 16. Bxe7 Qxe7 {1-0 (56) Nguyen,N (2431)-Gonda,L (2397) Budapest 2004}) 12... Ne4 {[%emt 0:04:51]} 13. Bxe7 {[%emt 0:02:52]} Qxe7 {[%emt 0:00:07]} 14. f3 {[%emt 0:07:24]} Nxc3 {[%emt 0:16:19]} 15. bxc3 {[%emt 0:01:32]} Rfe8 {[%emt 0:00:21]} 16. e4 {[%emt 0:13:30]} dxe4 {[%emt 0:08:11]} 17. fxe4 {[%emt 0:00:07]} Qxe4 {[%emt 0:00:04]} 18. Qxe4 {[%emt 0:00:05]} Rxe4 {[%emt 0:00:04]} 19. Ng3 {[%emt 0:05:55]} Re3 {[%emt 0:00:09]} 20. Rxb7 {[%emt 0:00:08]} Nf6 {[%emt 0:01:10]} 21. Nf5 {[%emt 0:03:22]} Rxc3 {[%emt 0:00:09] [#]} (21... Re6 $1 $14) 22. Nxh6+ $1 {[%emt 0:00:20]} gxh6 {[%emt 0:00:27]} 23. Rxf6 {[%emt 0:00:05]} Rf8 {[%emt 0:02:22]} 24. Rxa7 {[%emt 0:02:35]} Kg7 {[%emt 0:01:00]} 25. Rf4 {[%emt 0:01:30]} Kg6 {[%emt 0:00:42]} 26. Kf2 {[%emt 0:07:57]} (26. a4 $16) 26... Rb8 {[%emt 0:05:45]} 27. Re4 {[%emt 0:06:23]} ({Much weaker is} 27. Rfxf7 Rb2+ 28. Kg1 Rc1+ 29. Rf1 Rcc2 $11) (27. Raxf7 $16 Rb2+ 28. Kg1) 27... Rb4 {[%emt 0:03:40]} 28. Rd7 {[%emt 0:13:28]} c5 {[%emt 0:03:24]} 29. Rd6+ {[%emt 0:17:01]} f6 {[%emt 0:03:26]} 30. Ree6 {[%emt 0:00:45]} Rb2+ {[%emt 0:01:45]} 31. Re2 {[%emt 0:00:03]} Rcc2 {[%emt 0:00:35]} 32. Rxc2 {[%emt 0:01:29]} Rxc2+ {[%emt 0:00:05]} 33. Kf3 {[%emt 0:00:55]} cxd4 $11 {[%emt 0:00:11]} 34. a4 {[%emt 0:00:57]} Rc3+ {[%emt 0:00:20]} 35. Ke4 {[%emt 0:01:44]} Rc2 {[%emt 0:00:11]} 36. Kf3 {[%emt 0:01:08]} Rc3+ {[%emt 0:00:05]} 37. Ke2 {[%emt 0:00:31]} Rc2+ {[%emt 0:00:13]} 38. Kf3 {[%emt 0:00:02]} 1/2-1/2

[Event "World Team-ch Women 2019"]
[Site "Astana"]
[Date "2019.03.14"]
[Round "9.12"]
[White "Kulkarni Bhakti"]
[Black "Havanecz, Bianka"]
[Result "1-0"]
[ECO "D21"]
[WhiteElo "2322"]
[BlackElo "2270"]
[Annotator "NA"]
[PlyCount "138"]
[EventDate "2019.02.05"]
[EventType "team-tourn"]
[EventCountry "KAZ"]
[SourceTitle "playchess.com"]
[Source "ChessBase"]
[SourceQuality "1"]
[WhiteTeam "India"]
[BlackTeam "Hungary"]
[WhiteTeamCountry "IND"]
[BlackTeamCountry "HUN"]
[TimeControl "40/5400+30:1800+30"]

1. d4 {[%emt 0:00:00]} d5 {[%emt 0:00:00]} 2. c4 {[%emt 0:00:02]} dxc4 {[%emt 0:00:00]} 3. Nf3 {[%emt 0:00:40]} a6 {[%emt 0:00:00]} 4. e3 {[%emt 0:02:29]} Bg4 {[%emt 0:00:00]} 5. Bxc4 {[%emt 0:00:27]} e6 {[%emt 0:00:00]} 6. Nbd2 {[%emt 0:01:51]} Nc6 {[%emt 0:06:04] D22: Queen's Gambit Accepted: 3 Nf3 a6 4 e3} 7. Be2 {[%emt 0:00:18]} Nf6 {[%emt 0:00:24]} 8. O-O {[%emt 0:00:37]} Bd6 {[%emt 0:01:36]} 9. Nc4 {[%emt 0:00:19]} O-O {[%emt 0:01:00]} 10. b3 {[%emt 0:01:08]} Qe7 {[%emt 0:15:04]} 11. Bb2 {[%emt 0:01:21]} Rad8 {[%emt 0:03:02]} 12. Rc1 {[%emt 0:02:02]} Ne4 $146 {[%emt 0:04:02]} ({Predecessor:} 12... h6 13. h3 Bh5 14. Nfd2 Bg6 15. Nxd6 cxd6 {1-0 (34) Voloshin,L (2434)-Stocek,J (2595) Kouty nad Desnou 2012}) 13. h3 {[%emt 0:04:45]} Bh5 {[%emt 0:00:38]} 14. Nxd6 {[%emt 0:06:09]} Qxd6 {[%emt 0:04:17]} 15. Qc2 {[%emt 0:01:31]} f5 {[%emt 0:04:49]} 16. Rfd1 {[%emt 0:09:43]} Rc8 {[%emt 0:03:57]} 17. a3 {[%emt 0:05:19]} Ne7 {[%emt 0:03:14]} 18. Ne5 {[%emt 0:06:38]} Bxe2 {[%emt 0:01:21]} 19. Qxe2 {[%emt 0:00:29]} Nd5 {[%emt 0:06:55]} 20. Qd3 {[%emt 0:01:27]} c6 {[%emt 0:05:53]} 21. Rc2 {[%emt 0:01:17]} Qe7 {[%emt 0:01:56]} 22. Bc1 {[%emt 0:05:24]} Qh4 {[%emt 0:06:27]} 23. Nd7 {[%emt 0:11:17]} Rfd8 {[%emt 0:06:57]} 24. Nc5 {[%emt 0:00:17]} Nxc5 {[%emt 0:00:09]} 25. Rxc5 {[%emt 0:00:08]} Rc7 {[%emt 0:00:48]} 26. Bd2 {[%emt 0:01:19]} Rf7 {[%emt 0:00:38]} 27. f3 {[%emt 0:10:11]} Rf6 {[%emt 0:03:23]} 28. Qe2 {[%emt 0:02:13]} Rg6 {[%emt 0:01:20]} 29. Kh1 {[%emt 0:00:06]} Rf8 {[%emt 0:06:52]} 30. b4 {[%emt 0:01:47]} Rff6 {[%emt 0:03:09]} 31. Be1 {[%emt 0:05:03]} Qh6 {[%emt 0:00:12]} 32. Bf2 {[%emt 0:03:15]} Qg5 {[%emt 0:02:31]} 33. g3 {[%emt 0:01:43]} Rh6 {[%emt 0:03:28]} 34. h4 {[%emt 0:00:17]} Rfg6 {[%emt 0:00:06]} 35. Rg1 {[%emt 0:00:37]} f4 {[%emt 0:02:08]} 36. exf4 {[%emt 0:03:17]} Nxf4 {[%emt 0:03:37]} 37. Qe3 {[%emt 0:04:15]} Nd5 {[%emt 0:01:48]} 38. Qxg5 {[%emt 0:00:10]} Rxg5 {[%emt 0:00:03]} 39. Be3 {[%emt 0:00:00]} Rxg3 {[%emt 0:00:00]} 40. Bxh6 {[%emt 0:00:00]} Rxg1+ {[%emt 0:00:00]} 41. Kxg1 {[%emt 0:00:52]} gxh6 {[%emt 0:00:54]} 42. Rc2 {[%emt 0:01:55]} Kf7 {[%emt 0:00:08]} 43. Kf2 {[%emt 0:02:07]} h5 {[%emt 0:00:55]} 44. Re2 {[%emt 0:03:03]} Nf4 {[%emt 0:01:05]} 45. Re4 {[%emt 0:02:44]} Ng6 {[%emt 0:00:01]} 46. Kg3 {[%emt 0:00:36]} Kf6 {[%emt 0:00:11]} 47. Kf2 {[%emt 0:03:50]} Ne7 {[%emt 0:02:13]} 48. Ke2 {[%emt 0:01:15]} Nf5 {[%emt 0:00:53]} 49. Kd3 {[%emt 0:00:37]} Ke7 {[%emt 0:00:19]} 50. Re5 {[%emt 0:02:27]} h6 {[%emt 0:01:14]} 51. Re4 {[%emt 0:03:12]} Kd7 {[%emt 0:01:43]} 52. a4 {[%emt 0:00:49]} Ke7 {[%emt 0:01:25] [#]} 53. Rf4 $2 {[%emt 0:07:40]} (53. a5 $1 $18 {is the precise move to win.} Kd7 54. Re5) 53... Nd6 $2 {[%emt 0:06:43]} (53... b5 $16 {is more resistant.} 54. a5 Kd7) 54. a5 {[%emt 0:02:51]} Nf5 {[%emt 0:00:22]} 55. Rxf5 {[%emt 0:01:23]} exf5 {[%emt 0:00:07]} 56. Kc4 {[%emt 0:00:06]} Kd7 {[%emt 0:10:08] [#]} 57. Kc5 $18 {[%emt 0:00:22]} f4 {[%emt 0:02:12]} 58. d5 {[%emt 0:00:36]} cxd5 {[%emt 0:01:59]} 59. Kxd5 {[%emt 0:00:04]} Kc7 {[%emt 0:00:04]} 60. Ke5 {[%emt 0:00:58]} Kc6 {[%emt 0:01:01]} 61. Kxf4 {[%emt 0:00:15]} Kb5 {[%emt 0:00:04]} 62. Ke5 {[%emt 0:00:14]} Kxb4 {[%emt 0:00:05]} 63. f4 {[%emt 0:00:08]} Kxa5 {[%emt 0:00:05]} 64. f5 {[%emt 0:00:03]} b5 {[%emt 0:00:11]} 65. f6 {[%emt 0:00:03]} b4 {[%emt 0:00:37]} 66. f7 {[%emt 0:00:04]} b3 {[%emt 0:00:21]} 67. f8=Q {[%emt 0:00:07]} Ka4 {[%emt 0:00:11]} 68. Kd4 {[%emt 0:00:22]} b2 {[%emt 0:01:38]} 69. Qb8 {[%emt 0:00:13]} a5 {[%emt 0:00:29]} 1-0

[Event "World Team-ch Women 2019"]
[Site "Astana"]
[Date "2019.03.14"]
[Round "9.14"]
[White "Mkrtchian, Lilit"]
[Black "Assaubayeva, Bibisara"]
[Result "1-0"]
[ECO "D35"]
[WhiteElo "2390"]
[BlackElo "2376"]
[Annotator "NA"]
[PlyCount "55"]
[EventDate "2019.02.05"]
[EventType "team-tourn"]
[EventCountry "KAZ"]
[SourceTitle "playchess.com"]
[Source "ChessBase"]
[SourceQuality "1"]
[WhiteTeam "Armenia"]
[BlackTeam "Kazakhstan"]
[WhiteTeamCountry "ARM"]
[BlackTeamCountry "KAZ"]
[TimeControl "40/5400+30:1800+30"]

{[%evp 17,41,15,24,0,22,2,35,2,11,0,13,17,0,17,49,12,42,46,50,41,85,81,32767,32767,89,77]} 1. d4 {[%emt 0:00:00]} d5 {[%emt 0:00:22]} 2. c4 {[%emt 0:02:27]} e6 {[%emt 0:00:30]} 3. Nc3 {[%emt 0:00:19]} Nf6 {[%emt 0:00:07]} 4. cxd5 {[%emt 0:01:43]} exd5 {[%emt 0:00:08]} 5. Bg5 {[%emt 0:00:08]} Be7 {[%emt 0:01:34]} 6. e3 {[%emt 0:00:22]} c6 {[%emt 0:02:49]} 7. Bd3 {[%emt 0:00:07]} O-O {[%emt 0:06:03]} 8. Qc2 {[%emt 0:03:42]} Nbd7 {[%emt 0:03:32]} 9. Nf3 {[%emt 0:05:52]} h6 {[%emt 0:03:50]} 10. Bf4 {[%emt 0:08:51]} Nh5 {[%emt 0:06:45]} 11. Be5 {[%emt 0:08:47]} Nxe5 {[%emt 0:09:00] D36: Queen's Gambit Declined: Exchange Variation: Main line (5 Bg5 c6 6 Qc2)} (11... Nhf6 12. O-O Nxe5 13. dxe5 Nd7 14. Rad1 Nc5 15. Bh7+ Kh8 16. Bf5 Qc7 17. Rc1 Bxf5 18. Qxf5 a5 19. Rfd1 {½-½ (34) Rubinas,P (2551)-Miettinen,K (2451) ICCF email 2016}) 12. Nxe5 {[%emt 0:04:21]} Nf6 {[%emt 0:02:25]} 13. h3 {[%emt 0:00:14]} Bd6 {[%emt 0:04:46]} 14. f4 {[%emt 0:01:04]} c5 $146 {[%emt 0:05:38]} ({Predecessor:} 14... Nd7 15. O-O Nxe5 16. fxe5 Bc7 17. Rf3 {1-0 (25) Lopez Agustench,E (2272)-Gardela Batlle,J (2184) Alella 2008}) 15. g4 {[%emt 0:19:18]} c4 {[%emt 0:06:59]} 16. Be2 {[%emt 0:03:55]} b5 {[%emt 0:05:43]} 17. Bf3 {[%emt 0:08:53]} Qa5 {[%emt 0:06:54]} (17... b4 $5 {[%cal Rb4c3]} 18. Nxd5 Bxe5 19. Nxf6+ {[%mdl 64] Discovered Attack} Bxf6 20. Bxa8 Re8 $16) 18. O-O {[%emt 0:16:04]} (18. Qg2 $16) 18... Bb7 {[%emt 0:04:50]} 19. a3 {[%emt 0:03:05]} Rad8 {[%emt 0:06:55]} 20. Qg2 {[%emt 0:00:14]} Qb6 {[%emt 0:02:11]} 21. h4 $16 {[%emt 0:04:22]} ({Stronger than} 21. Bxd5 Nxd5 22. Nxd5 Bxe5 $17) 21... g5 {[%emt 0:05:42]} 22. hxg5 {[%emt 0:00:56]} hxg5 {[%emt 0:00:01]} 23. fxg5 {[%emt 0:00:41]} Ne4 {[%emt 0:00:28]} 24. Bxe4 {[%emt 0:01:58]} dxe4 {[%emt 0:01:30]} 25. Rf6 {[%emt 0:00:11]} Qa5 {[%emt 0:01:33]} 26. Qh2 {[%emt 0:02:56]} Bxe5 {[%emt 0:02:08]} 27. dxe5 {[%emt 0:00:03]} Rfe8 {[%emt 0:02:21]} 28. g6 {[%emt 0:00:50]} 1-0

[Event "World Team-ch Women 2019"]
[Site "Astana"]
[Date "2019.03.14"]
[Round "9.15"]
[White "Nakhbayeva, Guliskhan"]
[Black "Sargsyan, Anna M."]
[Result "1-0"]
[ECO "D11"]
[WhiteElo "2295"]
[BlackElo "2340"]
[Annotator "NA"]
[PlyCount "113"]
[EventDate "2019.02.05"]
[EventType "team-tourn"]
[EventCountry "KAZ"]
[SourceTitle "playchess.com"]
[Source "ChessBase"]
[SourceQuality "1"]
[WhiteTeam "Kazakhstan"]
[BlackTeam "Armenia"]
[WhiteTeamCountry "KAZ"]
[BlackTeamCountry "ARM"]
[TimeControl "40/5400+30:1800+30"]

1. d4 {[%emt 0:00:00]} d5 {[%emt 0:00:00]} 2. c4 {[%emt 0:00:00]} c6 {[%emt 0:00:00]} 3. Nf3 {[%emt 0:00:00]} Nf6 {[%emt 0:00:00]} 4. e3 {[%emt 0:00:00]} Bg4 {[%emt 0:00:18]} 5. h3 {[%emt 0:00:17]} Bxf3 {[%emt 0:00:32]} 6. Qxf3 {[%emt 0:00:07]} e6 {[%emt 0:00:03]} 7. Nc3 {[%emt 0:00:20]} Nbd7 {[%emt 0:00:09]} 8. Bd3 {[%emt 0:00:23]} Bb4 {[%emt 0:00:41]} 9. O-O {[%emt 0:00:24] D11: Slav Defence: 3 Nf3 sidelines and 3...Nf6 4 e3 Bg4} O-O {[%emt 0:00:14]} 10. a3 {[%emt 0:00:23]} (10. Qd1 Qe7 11. Qb3 Rab8 12. c5 Ba5 13. Qa4 Bc7 14. f4 a5 15. a3 {1-0 (65) Vidit,S (2718)-Shankland,S (2727) Danzhou 2018}) 10... Bd6 {[%emt 0:04:24]} 11. cxd5 {[%emt 0:08:48]} exd5 {[%emt 0:00:26]} 12. b4 {[%emt 0:01:35]} a6 $146 {[%emt 0:00:06]} ({Predecessor:} 12... Qc7 13. Bd2 Rfe8 {1-0 (43) Garcia Lopez,P (1854)-Martinez Miura,E (1733) Madrid 2010}) 13. Rb1 {[%emt 0:05:54]} Qe7 {[%emt 0:00:18]} 14. Bd2 {[%emt 0:03:05]} Rfe8 {[%emt 0:00:20]} 15. Rfd1 {[%emt 0:05:41]} Nf8 {[%emt 0:03:39]} 16. Na4 {[%emt 0:09:11]} Ne6 {[%emt 0:01:23]} 17. h4 {[%emt 0:01:38]} g5 {[%emt 0:22:55]} 18. hxg5 {[%emt 0:09:43]} Nxg5 {[%emt 0:00:07]} 19. Qf5 {[%emt 0:00:30]} Nge4 {[%emt 0:00:34] [#]} 20. Nc5 $1 {[%emt 0:02:35]} Rab8 {[%emt 0:08:00]} 21. Be1 {[%emt 0:03:40]} Bc7 {[%emt 0:01:53]} 22. Rb2 {[%emt 0:10:25]} Kh8 {[%emt 0:01:39]} 23. Re2 {[%emt 0:10:05]} Rg8 {[%emt 0:00:55]} 24. f4 {[%emt 0:05:09]} Ng3 {[%emt 0:12:32]} 25. Bxg3 $1 {[%emt 0:00:38]} Rxg3 {[%emt 0:00:06] [#]} 26. Nd7 $1 {[%emt 0:06:43]} Qxd7 {[%emt 0:01:48]} 27. Qxf6+ {[%emt 0:00:01]} Rg7 {[%emt 0:00:30]} 28. Bf5 {[%emt 0:00:27]} Qd6 {[%emt 0:01:31]} 29. Qxd6 {[%emt 0:02:13]} Bxd6 {[%emt 0:00:03]} 30. Kf2 {[%emt 0:00:16]} Ra8 {[%emt 0:01:30]} 31. Rb1 {[%emt 0:02:55]} f6 {[%emt 0:01:11]} 32. a4 {[%emt 0:04:28]} Re7 {[%emt 0:00:41]} 33. Kf3 {[%emt 0:00:13]} Kg7 {[%emt 0:01:52]} 34. g4 {[%emt 0:00:26]} h6 {[%emt 0:00:25]} 35. Rc2 {[%emt 0:03:29]} Kf7 {[%emt 0:03:59]} 36. Rb3 {[%emt 0:00:34]} Kg7 {[%emt 0:01:08]} 37. Rcc3 {[%emt 0:01:49]} a5 {[%emt 0:00:18]} 38. b5 {[%emt 0:00:32]} Bb4 {[%emt 0:00:07]} 39. Rc2 {[%emt 0:01:08]} cxb5 {[%emt 0:00:37]} 40. axb5 {[%emt 0:00:00]} Bd6 {[%emt 0:00:00]} 41. b6 {[%emt 0:01:32]} Bb4 {[%emt 0:19:07]} 42. Rb1 {[%emt 0:03:36]} Ra6 {[%emt 0:01:18]} 43. Rh1 {[%emt 0:01:33]} Ra8 {[%emt 0:07:48]} 44. Rch2 {[%emt 0:05:47]} Rh8 {[%emt 0:00:08]} 45. g5 {[%emt 0:00:53]} fxg5 {[%emt 0:02:35]} 46. fxg5 {[%emt 0:00:01]} a4 {[%emt 0:03:15]} 47. Rxh6 {[%emt 0:04:56]} Rxh6 {[%emt 0:00:07]} 48. gxh6+ {[%emt 0:00:32]} Kh8 {[%emt 0:00:23]} 49. Rc1 {[%emt 0:01:35]} Re8 {[%emt 0:02:37]} 50. Rc7 {[%emt 0:00:13]} Bd2 {[%emt 0:01:15]} 51. Rxb7 {[%emt 0:01:52]} Rxe3+ {[%emt 0:00:37]} 52. Kg4 {[%emt 0:01:54]} Re8 {[%emt 0:00:23]} 53. Rh7+ {[%emt 0:01:48]} Kg8 {[%emt 0:00:07]} 54. b7 {[%emt 0:00:48]} a3 {[%emt 0:01:48] [#]} 55. Re7 $1 {[%emt 0:02:50]} Rb8 {[%emt 0:01:20]} 56. h7+ {[%emt 0:00:11]} Kh8 {[%emt 0:00:29]} 57. Rc7 {[%emt 0:00:18]} 1-0